{"text_format":"1","workbook":"xlsx","n_sheets":1,"sheets":["Checklist"],"not_rendered":{"charts":0,"images":0,"macros":1,"external_links":0,"defined_names":2,"comments":1,"pivot_tables":0},"unopened":[],"bounds":{"document_bytes":16777216,"sheet_cells":100000,"rows_first":2000,"rows_last":500,"rows_between":2000,"halvings":0,"cell_chars":16384,"cell_head_chars":4096},"cells_cut":0,"cells_raw":0,"read":"whole","date_system":"1900"}

{"sheet":"Checklist","index":0,"n_rows":227,"n_cols":37,"rows_kept":227,"cut":false,"hidden":false,"merged":[[120,0,120,19],[120,28,120,32],[120,20,120,27],[213,33,213,35],[197,33,197,35],[154,33,154,35],[171,28,171,32],[140,0,140,19],[140,20,140,27],[140,28,140,32],[151,20,151,27],[151,28,151,32],[152,20,152,27],[152,28,152,32],[153,20,153,27],[153,28,153,32],[148,20,148,27],[148,28,148,32],[149,20,149,27],[149,28,149,32],[150,20,150,27],[150,28,150,32],[161,20,161,27],[161,28,161,32],[221,0,221,32],[220,0,220,32],[219,0,219,32],[218,0,218,32],[217,0,217,32],[216,0,216,32],[172,0,172,19],[170,0,170,19],[169,0,169,19],[190,0,190,19],[189,0,189,19],[195,0,195,19],[178,0,178,19],[179,0,179,19],[180,0,180,19],[181,0,181,19],[185,0,185,19],[171,0,171,19],[182,0,182,19],[186,0,186,19],[172,28,172,32],[202,0,202,19],[201,0,201,19],[204,20,204,27],[225,0,225,8],[225,10,225,18],[226,0,226,8],[226,10,226,18],[226,30,226,32],[226,20,226,28],[225,20,225,28],[225,30,225,32],[224,0,224,32],[223,0,223,32],[222,0,222,32],[214,0,214,32],[215,0,215,32],[213,0,213,32],[188,0,188,19],[187,0,187,19],[174,0,174,19],[161,0,161,19],[200,0,200,19],[194,0,194,19],[193,0,193,19],[192,0,192,19],[191,0,191,19],[162,0,162,19],[168,0,168,19],[167,0,167,19],[166,0,166,19],[165,0,165,19],[164,0,164,19],[163,0,163,19],[173,0,173,19],[176,0,176,19],[177,0,177,19],[162,20,162,27],[162,28,162,32],[163,20,163,27],[163,28,163,32],[170,20,170,27],[170,28,170,32],[172,20,172,27],[167,20,167,27],[167,28,167,32],[168,20,168,27],[168,28,168,32],[169,20,169,27],[169,28,169,32],[164,20,164,27],[164,28,164,32],[165,20,165,27],[171,20,171,27],[165,28,165,32],[145,20,145,27],[145,28,145,32],[146,20,146,27],[146,28,146,32],[147,20,147,27],[147,28,147,32],[142,20,142,27],[142,28,142,32],[143,20,143,27],[143,28,143,32],[144,20,144,27],[144,28,144,32],[114,20,114,27],[114,28,114,32],[115,20,115,27],[115,28,115,32],[113,20,113,27],[113,28,113,32],[119,20,119,27],[119,28,119,32],[141,20,141,27],[141,28,141,32],[116,20,116,27],[116,28,116,32],[117,20,117,27],[117,28,117,32],[118,20,118,27],[118,28,118,32],[126,20,126,27],[126,28,126,32],[110,20,110,27],[110,28,110,32],[111,20,111,27],[111,28,111,32],[112,20,112,27],[112,28,112,32],[107,20,107,27],[107,28,107,32],[108,20,108,27],[108,28,108,32],[109,20,109,27],[109,28,109,32],[105,20,105,27],[105,28,105,32],[106,20,106,27],[106,28,106,32],[101,20,101,27],[101,28,101,32],[102,20,102,27],[102,28,102,32],[103,20,103,27],[103,28,103,32],[98,20,98,27],[98,28,98,32],[99,20,99,27],[99,28,99,32],[100,20,100,27],[100,28,100,32],[97,20,97,27],[97,28,97,32],[104,20,104,27],[104,28,104,32],[93,20,93,27],[93,28,93,32],[94,20,94,27],[94,28,94,32],[96,20,96,27],[96,28,96,32],[90,20,90,27],[90,28,90,32],[91,20,91,27],[91,28,91,32],[92,20,92,27],[92,28,92,32],[87,20,87,27],[87,28,87,32],[88,20,88,27],[88,28,88,32],[89,20,89,27],[89,28,89,32],[84,20,84,27],[84,28,84,32],[85,20,85,27],[85,28,85,32],[86,20,86,27],[86,28,86,32],[81,20,81,27],[81,28,81,32],[82,20,82,27],[82,28,82,32],[83,20,83,27],[83,28,83,32],[79,20,79,27],[79,28,79,32],[80,20,80,27],[80,28,80,32],[76,20,76,27],[76,28,76,32],[77,20,77,27],[77,28,77,32],[78,20,78,27],[78,28,78,32],[75,20,75,27],[75,28,75,32],[72,20,72,27],[72,28,72,32],[73,20,73,27],[73,28,73,32],[74,20,74,27],[74,28,74,32],[71,20,71,27],[71,28,71,32],[69,0,69,32],[70,0,70,19],[70,20,70,27],[70,28,70,32],[72,0,72,19],[71,0,71,19],[74,0,74,19],[73,0,73,19],[205,28,205,32],[206,20,206,27],[206,28,206,32],[201,20,201,27],[201,28,201,32],[202,20,202,27],[202,28,202,32],[203,20,203,27],[203,28,203,32],[203,0,203,19],[211,20,211,27],[211,28,211,32],[212,20,212,27],[212,28,212,32],[207,20,207,27],[207,28,207,32],[208,20,208,27],[208,28,208,32],[209,20,209,27],[209,28,209,32],[210,20,210,27],[210,28,210,32],[212,0,212,19],[211,0,211,19],[210,0,210,19],[209,0,209,19],[208,0,208,19],[207,0,207,19],[206,0,206,19],[205,0,205,19],[204,0,204,19],[204,28,204,32],[205,20,205,27],[200,20,200,27],[200,28,200,32],[194,20,194,27],[194,28,194,32],[198,0,198,32],[199,0,199,19],[199,20,199,27],[199,28,199,32],[197,0,197,32],[196,0,196,19],[196,20,196,27],[196,28,196,32],[195,20,195,27],[195,28,195,32],[192,20,192,27],[192,28,192,32],[193,20,193,27],[193,28,193,32],[190,20,190,27],[190,28,190,32],[191,20,191,27],[191,28,191,32],[187,28,187,32],[188,20,188,27],[188,28,188,32],[189,20,189,27],[189,28,189,32],[187,20,187,27],[178,20,178,27],[178,28,178,32],[179,20,179,27],[179,28,179,32],[180,20,180,27],[180,28,180,32],[181,20,181,27],[166,20,166,27],[166,28,166,32],[181,28,181,32],[173,20,173,27],[173,28,173,32],[174,20,174,27],[174,28,174,32],[175,20,175,27],[175,28,175,32],[176,20,176,27],[176,28,176,32],[177,20,177,27],[177,28,177,32],[160,0,160,19],[159,0,159,19],[158,0,158,19],[158,20,158,27],[158,28,158,32],[154,0,154,32],[155,0,155,32],[156,0,156,19],[156,20,156,27],[156,28,156,32],[159,20,159,27],[159,28,159,32],[160,20,160,27],[160,28,160,32],[157,28,157,32],[157,20,157,27],[157,0,157,19],[65,0,65,6],[65,7,65,15],[65,16,65,19],[65,20,65,32],[66,0,66,32],[67,0,67,32],[63,0,63,6],[63,7,63,21],[63,22,63,23],[63,24,63,32],[64,0,64,6],[64,7,64,32],[112,0,112,19],[111,0,111,19],[110,0,110,19],[109,0,109,19],[108,0,108,19],[107,0,107,19],[106,0,106,19],[105,0,105,19],[119,0,119,19],[118,0,118,19],[117,0,117,19],[116,0,116,19],[115,0,115,19],[114,0,114,19],[113,0,113,19],[60,0,60,6],[60,7,60,15],[60,16,60,19],[60,20,60,32],[61,0,61,32],[62,0,62,32],[57,0,57,32],[58,0,58,6],[58,7,58,21],[58,22,58,23],[58,24,58,32],[59,0,59,6],[59,7,59,32],[56,0,56,32],[53,24,53,32],[53,22,53,23],[53,7,53,21],[55,7,55,15],[55,16,55,19],[55,20,55,32],[49,0,49,32],[53,0,53,6],[54,0,54,6],[54,7,54,32],[55,0,55,6],[47,0,47,22],[47,23,47,32],[48,0,48,22],[48,23,48,32],[43,0,43,22],[43,23,43,32],[44,0,44,22],[44,23,44,32],[45,0,45,22],[45,23,45,32],[33,23,33,32],[34,0,34,22],[34,23,34,32],[35,0,35,22],[36,23,36,32],[37,23,37,32],[38,23,38,32],[46,0,46,22],[46,23,46,32],[35,23,35,32],[40,0,40,32],[41,0,41,32],[42,0,42,22],[42,23,42,32],[39,0,39,32],[38,0,38,22],[37,0,37,22],[36,0,36,22],[33,0,33,22],[3,0,3,32],[12,23,12,32],[15,16,15,22],[8,0,8,6],[30,0,30,32],[32,23,32,32],[22,23,22,32],[28,0,28,32],[24,0,24,32],[25,0,25,32],[27,0,27,22],[27,23,27,32],[23,0,23,32],[26,0,26,32],[31,0,31,32],[32,0,32,22],[7,7,7,32],[8,7,8,12],[8,13,8,15],[8,17,8,19],[8,20,8,24],[4,0,4,32],[6,0,6,6],[6,7,6,32],[7,0,7,6],[16,0,16,32],[12,0,12,15],[15,0,15,15],[14,0,14,15],[13,0,13,15],[12,16,12,22],[13,16,13,22],[10,0,10,32],[8,28,8,32],[8,25,8,27],[5,0,5,32],[22,0,22,15],[22,16,22,22],[51,0,51,32],[52,0,52,32],[18,0,18,32],[50,0,50,32],[17,0,17,32],[11,0,11,32],[9,0,9,32],[14,16,14,22],[15,23,15,32],[14,23,14,32],[13,23,13,32],[19,0,19,15],[19,16,19,22],[19,23,19,32],[20,0,20,15],[20,16,20,22],[20,23,20,32],[21,0,21,15],[21,16,21,22],[21,23,21,32],[29,0,29,32],[96,0,96,19],[94,0,94,19],[93,0,93,19],[92,0,92,19],[91,0,91,19],[90,0,90,19],[89,0,89,19],[88,0,88,19],[104,0,104,19],[103,0,103,19],[102,0,102,19],[101,0,101,19],[100,0,100,19],[99,0,99,19],[98,0,98,19],[97,0,97,19],[76,0,76,19],[75,0,75,19],[87,0,87,19],[86,0,86,19],[85,0,85,19],[84,0,84,19],[83,0,83,19],[82,0,82,19],[81,0,81,19],[80,0,80,19],[79,0,79,19],[2,0,2,32],[1,0,1,32],[225,29,226,29],[225,19,226,19],[225,9,226,9],[0,0,0,28],[0,29,0,32],[144,0,144,19],[143,0,143,19],[142,0,142,19],[141,0,141,19],[68,0,68,32],[153,0,153,19],[152,0,152,19],[151,0,151,19],[150,0,150,19],[149,0,149,19],[148,0,148,19],[147,0,147,19],[146,0,146,19],[145,0,145,19],[78,0,78,19],[77,0,77,19],[175,0,175,19],[182,20,182,27],[182,28,182,32],[183,0,183,19],[183,20,183,27],[183,28,183,32],[184,0,184,19],[184,20,184,27],[184,28,184,32],[185,20,185,27],[185,28,185,32],[186,20,186,27],[186,28,186,32],[121,0,121,19],[121,20,121,27],[121,28,121,32],[122,0,122,19],[122,20,122,27],[122,28,122,32],[123,0,123,19],[123,20,123,27],[123,28,123,32],[124,0,124,19],[124,20,124,27],[124,28,124,32],[125,0,125,19],[125,20,125,27],[125,28,125,32],[126,0,126,19],[127,0,127,19],[127,20,127,27],[127,28,127,32],[128,0,128,19],[128,20,128,27],[128,28,128,32],[134,0,134,19],[134,20,134,27],[134,28,134,32],[129,0,129,19],[129,20,129,27],[129,28,129,32],[130,0,130,19],[130,20,130,27],[130,28,130,32],[131,0,131,19],[131,20,131,27],[131,28,131,32],[138,0,138,19],[138,20,138,27],[138,28,138,32],[139,0,139,19],[139,20,139,27],[139,28,139,32],[95,0,95,19],[95,20,95,27],[95,28,95,32],[135,0,135,19],[135,20,135,27],[135,28,135,32],[136,0,136,19],[136,20,136,27],[136,28,136,32],[137,0,137,19],[137,20,137,27],[137,28,137,32],[132,0,132,19],[132,20,132,27],[132,28,132,32],[133,0,133,19],[133,20,133,27],[133,28,133,32]]}
["PROJECT OWNERSHIP CHANGE CHECKLIST ",null,null,null,null,null,null,null,null,null,null,null,null,null,null,null,null,null,null,null,null,null,null,null,null,null,null,null,null,"Rev. 2/13/2025"]
[]
["INSTRUCTIONS: When opening this file, a yellow banner at the top may appear with a button that says, \"Enable Editing\", and/or \"Enable Macros\". It is essential that you click this box(es) so that the macros are enabled. Enabling macros is necessary for full workbook/application functionality.\n\nWARNING: For full functionality, use a PC with Microsoft Office 2013 or newer. Excel on Mac may not fully support all features, especially with complex documents."]
[]
["PROJECT INFORMATION"]
[]
["Project Name:"]
["Street Address:"]
["City:",null,null,null,null,null,null,null,null,null,null,null,null,"State: ",null,null,"CA","Zip Code:",null,null,null,null,null,null,null,"County:"]
[]
["PROJECT FUNDING SOURCES"]
[]
["Department Funding Source:",null,null,null,null,null,null,null,null,null,null,null,null,null,null,null,"Funding Source in Project:",null,null,null,null,null,null,"Contract# / Project Identification #:"]
["Housing and Community Development (HCD)",null,null,null,null,null,null,null,null,null,null,null,null,null,null,null,"Yes"]
["California Housing Finance Agency (CalHFA)",null,null,null,null,null,null,null,null,null,null,null,null,null,null,null,"Yes"]
["California Tax Credit Allocation Committee (TCAC)",null,null,null,null,null,null,null,null,null,null,null,null,null,null,null,"Yes"]
[]
["PROJECT CHANGES:"]
[]
["Type of Change:",null,null,null,null,null,null,null,null,null,null,null,null,null,null,null,"Type of Change Proposed:",null,null,null,null,null,null,"Date of Purchase Agreement:"]
["Sale",null,null,null,null,null,null,null,null,null,null,null,null,null,null,null,"Yes"]
["Change in General Partner (GP Change)",null,null,null,null,null,null,null,null,null,null,null,null,null,null,null,"Yes"]
["Change in Limited Partner (LP Change)",null,null,null,null,null,null,null,null,null,null,null,null,null,null,null,"Yes"]
[]
["Transaction Details:\nDescribe in detail the proposed transaction (attach additional pages if necessary)"]
[]
[]
["Anticipated Closing Date for Transaction:\nPlease note CalHFA/HCD/CTCAC is under no obligation to meet the Closing Date provided."]
[]
["PROJECT ORGANIZATION STRUCTURE"]
[]
["Current Organization Structure"]
["List ALL Partners, Members, Entities, Individuals:",null,null,null,null,null,null,null,null,null,null,null,null,null,null,null,null,null,null,null,null,null,null,"Percentage of Ownership:"]
[]
[]
[]
[]
[]
[]
[]
[]
["Proposed Organization Structure"]
["List ALL Partners, Members, Entities, Individuals:",null,null,null,null,null,null,null,null,null,null,null,null,null,null,null,null,null,null,null,null,null,null,"Percentage of Ownership:"]
[]
[]
[]
[]
[]
[]
[]
["PROJECT CONTACTS"]
[]
["Borrower/Sponsor"]
["Contact Person:",null,null,null,null,null,null,null,null,null,null,null,null,null,null,null,null,null,null,null,null,null,"Title: "]
["Mailing Address:"]
["Phone: ",null,null,null,null,null,null,null,null,null,null,null,null,null,null,null,"Email: "]
[]
["Incoming Entity"]
["Contact Person:",null,null,null,null,null,null,null,null,null,null,null,null,null,null,null,null,null,null,null,null,null,"Title: "]
["Mailing Address:"]
["Phone: ",null,null,null,null,null,null,null,null,null,null,null,null,null,null,null,"Email: "]
[]
["Departing Entity"]
["Contact Person:",null,null,null,null,null,null,null,null,null,null,null,null,null,null,null,null,null,null,null,null,null,"Title: "]
["Mailing Address:",null,null,null,null,null,null," "]
["Phone: ",null,null,null,null,null,null,null,null,null,null,null,null,null,null,null,"Email: "]
[]
["DOCUMENT CHECKLIST"]
[null,null,null,null,null,null,null,null,null,null,null,null,null,null,null,null,null,null,null,null,null,null,null,null,null,null,null,null,null,null,null,null,null,null,null,null,"X"]
["Sale",null,null,null,null,null,null,null,null,null,null,null,null,null,null,null,null,null,null,null,null,null,null,null,null,null,null,null,null,null,null,null,null,null,null,null,"X"]
["Documents:",null,null,null,null,null,null,null,null,null,null,null,null,null,null,null,null,null,null,null,"Required By:",null,null,null,null,null,null,null,"Attached?",null,null,null,null,"HCD","CALHFA","TCAC","X"]
["Ownership Change Form indicating the proposed sale",null,null,null,null,null,null,null,null,null,null,null,null,null,null,null,null,null,null,null,{"$f":"_xlfn.TEXTJOIN(\", \", TRUE, IF(AH72=\"\", \"\", AH72), IF(AI72=\"\", \"\", AI72), IF(AJ72=\"\", \"\", AJ72))","v":"HCD, CalHFA, TCAC"},null,null,null,null,null,null,null,null,null,null,null,null,{"$f":"IF($Q$14=\"Yes\", \"HCD\",\"\")","v":"HCD"},{"$f":"IF($Q$15=\"Yes\", \"CalHFA\",\"\")","v":"CalHFA"},{"$f":"IF($Q$16=\"Yes\", \"TCAC\",\"\")","v":"TCAC"},{"$f":"CONCATENATE(AH72,AI72,AJ72)","v":"HCDCalHFATCAC"}]
["Completed application with required attachments",null,null,null,null,null,null,null,null,null,null,null,null,null,null,null,null,null,null,null,"HCD",null,null,null,null,null,null,null,null,null,null,null,null,{"$f":"IF($Q$14=\"Yes\", \"HCD\",\"\")","v":"HCD"},null,null,{"$f":"CONCATENATE(AH73,AI73,AJ73)","v":"HCD"}]
["A resume of the buyer",null,null,null,null,null,null,null,null,null,null,null,null,null,null,null,null,null,null,null,"CalHFA",null,null,null,null,null,null,null,null,null,null,null,null,null,{"$f":"IF($Q$15=\"Yes\", \"CalHFA\",\"\")","v":"CalHFA"},null,"CalHFA"]
["Completed Project Ownership Profile Form (POP)",null,null,null,null,null,null,null,null,null,null,null,null,null,null,null,null,null,null,null,"TCAC",null,null,null,null,null,null,null,null,null,null,null,null,null,null,{"$f":"IF($Q$16=\"Yes\", \"TCAC\",\"\")","v":"TCAC"},"TCAC"]
["Letter of Commitment from New Senior Lender (if applicable)",null,null,null,null,null,null,null,null,null,null,null,null,null,null,null,null,null,null,null,"HCD",null,null,null,null,null,null,null,null,null,null,null,null,{"$f":"IF($Q$14=\"Yes\", \"HCD\",\"\")","v":"HCD"},null,null,"HCD"]
["Diagram of current Borrower organization structure",null,null,null,null,null,null,null,null,null,null,null,null,null,null,null,null,null,null,null,"HCD, CalHFA",null,null,null,null,null,null,null,null,null,null,null,null,{"$f":"IF($Q$14=\"Yes\", \"HCD\",\"\")","v":"HCD"},{"$f":"IF($Q$15=\"Yes\", \"CalHFA\",\"\")","v":"CalHFA"},null,"HCDCalHFA"]
["Sources and Uses worksheet including net equity distribution to the seller",null,null,null,null,null,null,null,null,null,null,null,null,null,null,null,null,null,null,null,"TCAC",null,null,null,null,null,null,null,null,null,null,null,null,null,null,{"$f":"IF($Q$16=\"Yes\", \"TCAC\",\"\")","v":"TCAC"},"TCAC"]
["Financial statements for new owner entity including General Partner (GP) or Administrative General Partner (AGP). If entity is newly formed, include financial statements for the principals",null,null,null,null,null,null,null,null,null,null,null,null,null,null,null,null,null,null,null,"TCAC",null,null,null,null,null,null,null,null,null,null,null,null,null,null,{"$f":"IF($Q$16=\"Yes\", \"TCAC\",\"\")","v":"TCAC"},"TCAC"]
["Organization Chart showing the newly proposed owner structure",null,null,null,null,null,null,null,null,null,null,null,null,null,null,null,null,null,null,null,"HCD, CalHFA, TCAC",null,null,null,null,null,null,null,null,null,null,null,null,{"$f":"IF($Q$14=\"Yes\", \"HCD\",\"\")","v":"HCD"},{"$f":"IF($Q$15=\"Yes\", \"CalHFA\",\"\")","v":"CalHFA"},{"$f":"IF($Q$16=\"Yes\", \"TCAC\",\"\")","v":"TCAC"},"HCDCalHFATCAC"]
["Organizational documents of the buyer:\n* Operating Agreement and Articles of Organization (LLC-1) for an LLC\n* Bylaws and Articles of Incorporation (ARTS-GS) for a corporation",null,null,null,null,null,null,null,null,null,null,null,null,null,null,null,null,null,null,null,"HCD, CalHFA",null,null,null,null,null,null,null,null,null,null,null,null,{"$f":"IF($Q$14=\"Yes\", \"HCD\",\"\")","v":"HCD"},{"$f":"IF($Q$15=\"Yes\", \"CalHFA\",\"\")","v":"CalHFA"},null,"HCDCalHFA"]
["Completed Attachment 21 - General Partner (GP) Experience, link to form",null,null,null,null,null,null,null,null,null,null,null,null,null,null,null,null,null,null,null,"TCAC",null,null,null,null,null,null,null,null,null,null,null,null,null,null,{"$f":"IF($Q$16=\"Yes\", \"TCAC\",\"\")","v":"TCAC"},"TCAC"]
["Sponsor / Owner / Borrower Signature Block for the existing Borrower (in MS Word format) ***needed if current Borrower is transferring property to another entity)",null,null,null,null,null,null,null,null,null,null,null,null,null,null,null,null,null,null,null,"HCD, CalHFA",null,null,null,null,null,null,null,null,null,null,null,null,{"$f":"IF($Q$14=\"Yes\", \"HCD\",\"\")","v":"HCD"},{"$f":"IF($Q$15=\"Yes\", \"CalHFA\",\"\")","v":"CalHFA"},null,"HCDCalHFA"]
["Sponsor / Owner / Borrower signature blocks for proposed new Borrower (in MS Word format) ",null,null,null,null,null,null,null,null,null,null,null,null,null,null,null,null,null,null,null,{"$f":"_xlfn.TEXTJOIN(\", \", TRUE, IF(AH84=\"\", \"\", AH84), IF(AI84=\"\", \"\", AI84), IF(AJ84=\"\", \"\", AJ84))","v":"HCD, CalHFA"},null,null,null,null,null,null,null,null,null,null,null,null,{"$f":"IF($Q$14=\"Yes\", \"HCD\",\"\")","v":"HCD"},{"$f":"IF($Q$15=\"Yes\", \"CalHFA\",\"\")","v":"CalHFA"},null,"HCDCalHFA"]
["An executed copy of the Amended Limited Partnership Agreement. \n***The LPA should be signed by the General Partner and the new incoming Limited Partner***",null,null,null,null,null,null,null,null,null,null,null,null,null,null,null,null,null,null,null,"HCD, CalHFA",null,null,null,null,null,null,null,null,null,null,null,null,{"$f":"IF($Q$14=\"Yes\", \"HCD\",\"\")","v":"HCD"},{"$f":"IF($Q$15=\"Yes\", \"CalHFA\",\"\")","v":"CalHFA"},null,"HCDCalHFA"]
["Any and all amendments to the Limited Partnership Agreement, identifying change(s) (signed by all parties)\nCertificates of Good Standing for buyer and seller\n* Limited Partnership Agreement and Certificate of Limited Partnership (LP-1) (Final LPA required prior to transaction closing)",null,null,null,null,null,null,null,null,null,null,null,null,null,null,null,null,null,null,null,"HCD, CalHFA",null,null,null,null,null,null,null,null,null,null,null,null,{"$f":"IF($Q$14=\"Yes\", \"HCD\",\"\")","v":"HCD"},{"$f":"IF($Q$15=\"Yes\", \"CalHFA\",\"\")","v":"CalHFA"},null,"HCDCalHFA"]
["Filing of the newly formed ownership entity with the California Secretary of State's Office (LP-1) ",null,null,null,null,null,null,null,null,null,null,null,null,null,null,null,null,null,null,null,"TCAC",null,null,null,null,null,null,null,null,null,null,null,null,null,null,{"$f":"IF($Q$16=\"Yes\", \"TCAC\",\"\")","v":"TCAC"},"TCAC"]
["Proposed new Corporate Managing/Administrative General Partner or Borrower or Sole-Member/Manager: Articles of Incorporation, By-Laws, Resolution, Certificate of Status from Secretary of State",null,null,null,null,null,null,null,null,null,null,null,null,null,null,null,null,null,null,null,"HCD, CalHFA",null,null,null,null,null,null,null,null,null,null,null,null,{"$f":"IF($Q$14=\"Yes\", \"HCD\",\"\")","v":"HCD"},{"$f":"IF($Q$15=\"Yes\", \"CalHFA\",\"\")","v":"CalHFA"},null,"HCDCalHFA"]
["Proposed new LLC Managing/Administrative General Partner or Borrower: Articles of Organization, Operating Agreement, Resolution, Certificate of Status from Secretary of State",null,null,null,null,null,null,null,null,null,null,null,null,null,null,null,null,null,null,null,"HCD, CalHFA",null,null,null,null,null,null,null,null,null,null,null,null,{"$f":"IF($Q$14=\"Yes\", \"HCD\",\"\")","v":"HCD"},"CalHFA",null,"HCDCalHFA"]
["Resolution/Authorization from every level of the Borrower organizational structure authorizing the transaction. NOTE: IF THERE IS A TRANSFER OF THE PROPERTY, SELLING ORGANIZATION RESOLUTION/AUTHORIZATION SUBMITTAL WILL ALSO BE REQUIRED",null,null,null,null,null,null,null,null,null,null,null,null,null,null,null,null,null,null,null,"HCD, CalHFA",null,null,null,null,null,null,null,null,null,null,null,null,{"$f":"IF($Q$14=\"Yes\", \"HCD\",\"\")","v":"HCD"},"CalHFA",null,"HCDCalHFA"]
["If the incoming General Partner is a non-profit, then an IRS approval letter",null,null,null,null,null,null,null,null,null,null,null,null,null,null,null,null,null,null,null,"CalHFA",null,null,null,null,null,null,null,null,null,null,null,null,null,"CalHFA",null,"CalHFA"]
["IRS Tax Form 990 for Welfare Property Tax Exemption (if applicable)",null,null,null,null,null,null,null,null,null,null,null,null,null,null,null,null,null,null,null,"HCD, CalHFA, TCAC",null,null,null,null,null,null,null,null,null,null,null,null,{"$f":"IF($Q$14=\"Yes\", \"HCD\",\"\")","v":"HCD"},"CalHFA",{"$f":"IF($Q$16=\"Yes\", \"TCAC\",\"\")","v":"TCAC"},"HCDCalHFATCAC"]
["Proof of 501(c)(3) eligible status",null,null,null,null,null,null,null,null,null,null,null,null,null,null,null,null,null,null,null,"HCD, CalHFA",null,null,null,null,null,null,null,null,null,null,null,null,{"$f":"IF($Q$14=\"Yes\", \"HCD\",\"\")","v":"HCD"},"CalHFA",null,"HCDCalHFA"]
["IRS letter which shows the federal taxpayer identification number for the new owner entity",null,null,null,null,null,null,null,null,null,null,null,null,null,null,null,null,null,null,null,"CalHFA, TCAC",null,null,null,null,null,null,null,null,null,null,null,null,null,"CalHFA",{"$f":"IF($Q$16=\"Yes\", \"TCAC\",\"\")","v":"TCAC"},"CalHFATCAC"]
["Current /Updated Preliminary Report (PR) with hyperlinks. If there is a Ground Lease, two hyperlinked PRs are required (one for fee and one for leasehold estate) NOTE: Less than 30 days old. An updated PR will be required prior to closing the transaction",null,null,null,null,null,null,null,null,null,null,null,null,null,null,null,null,null,null,null,"HCD, CalHFA",null,null,null,null,null,null,null,null,null,null,null,null,{"$f":"IF($Q$14=\"Yes\", \"HCD\",\"\")","v":"HCD"},"CalHFA",null,"HCDCalHFA"]
["Verifications for Proposed Operating Budget if different from most recent approved Operating Expenses ",null,null,null,null,null,null,null,null,null,null,null,null,null,null,null,null,null,null,null,{"$f":"_xlfn.TEXTJOIN(\", \", TRUE, IF(AH96=\"\", \"\", AH96), IF(AI96=\"\", \"\", AI96), IF(AJ96=\"\", \"\", AJ96))","v":"HCD"},null,null,null,null,null,null,null,null,null,null,null,null,{"$f":"IF($Q$14=\"Yes\", \"HCD\",\"\")","v":"HCD"},null,null,"HCD"]
["TCAC Stand Still Agreement - if lender requires ",null,null,null,null,null,null,null,null,null,null,null,null,null,null,null,null,null,null,null,"TCAC",null,null,null,null,null,null,null,null,null,null,null,null,null,null,{"$f":"IF($Q$16=\"Yes\", \"TCAC\",\"\")","v":"TCAC"},"TCAC"]
["If transfer is an acquisition/rehabilitation and requires a Phase I or II environmental report, the report needs to be provided",null,null,null,null,null,null,null,null,null,null,null,null,null,null,null,null,null,null,null,"CalHFA",null,null,null,null,null,null,null,null,null,null,null,null,null,{"$f":"IF($Q$15=\"Yes\", \"CalHFA\",\"\")","v":"CalHFA"},null,"CalHFA"]
["If rehab work is required or anticipated as part of the transfer, then a Physical Needs Assessment (PNA) report must be supplied",null,null,null,null,null,null,null,null,null,null,null,null,null,null,null,null,null,null,null,"HCD, CalHFA",null,null,null,null,null,null,null,null,null,null,null,null,{"$f":"IF($Q$14=\"Yes\", \"HCD\",\"\")","v":"HCD"},{"$f":"IF($Q$15=\"Yes\", \"CalHFA\",\"\")","v":"CalHFA"},null,"HCDCalHFA"]
["TCAC Capital Needs Agreement - Ownership Transfers (editable Microsoft Word format) - if applicable ",null,null,null,null,null,null,null,null,null,null,null,null,null,null,null,null,null,null,null,"TCAC",null,null,null,null,null,null,null,null,null,null,null,null,null,null,{"$f":"IF($Q$16=\"Yes\", \"TCAC\",\"\")","v":"TCAC"},"TCAC"]
["Current Qualified Capital Needs Assessment or Property Condition Assessment, as defined in TCAC Regulation Section 10302(ff), for the property (must have a 15-year cost reserve table and show inflated costs per year as well as a separate table showing immediate and critical repairs ) triggered if the owner is walking away with equity proceeds or if the existing debt is being increased other than closing costs (if applicable)",null,null,null,null,null,null,null,null,null,null,null,null,null,null,null,null,null,null,null,"TCAC",null,null,null,null,null,null,null,null,null,null,null,null,null,null,{"$f":"IF($Q$16=\"Yes\", \"TCAC\",\"\")","v":"TCAC"},"TCAC"]
["Relocation Plan - with current rent roll (if applicable)",null,null,null,null,null,null,null,null,null,null,null,null,null,null,null,null,null,null,null,"HCD",null,null,null,null,null,null,null,null,null,null,null,null,{"$f":"IF($Q$14=\"Yes\", \"HCD\",\"\")","v":"HCD"},null,null,"HCD"]
["Rent Roll Information, needed to verify data - including household income, move-in date, utility allowances, subsidies (Sponsor must submit a stand alone - Schedule of Rental Income (Excel Workbook) baed on original loan program",null,null,null,null,null,null,null,null,null,null,null,null,null,null,null,null,null,null,null,"HCD",null,null,null,null,null,null,null,null,null,null,null,null,{"$f":"IF($Q$14=\"Yes\", \"HCD\",\"\")","v":"HCD"},null,null,"HCD"]
["Attachment 22 - Management Company Experience, link to form",null,null,null,null,null,null,null,null,null,null,null,null,null,null,null,null,null,null,null,"TCAC",null,null,null,null,null,null,null,null,null,null,null,null,null,null,{"$f":"IF($Q$16=\"Yes\", \"TCAC\",\"\")","v":"TCAC"},"TCAC"]
["Written statement from current owner confirming that seller will transfer tenant records and all tenant demographic data collected up to the date the sale closes escrow to the buyer and their property management agent",null,null,null,null,null,null,null,null,null,null,null,null,null,null,null,null,null,null,null,"TCAC",null,null,null,null,null,null,null,null,null,null,null,null,null,null,{"$f":"IF($Q$16=\"Yes\", \"TCAC\",\"\")","v":"TCAC"},"TCAC"]
["Statement of the current Building Identification Numbers (BINs) and unit mix of the property. Plrovide an additional explanation if this mix differs from the Recorded Regulatory Agreement",null,null,null,null,null,null,null,null,null,null,null,null,null,null,null,null,null,null,null,{"$f":"_xlfn.TEXTJOIN(\", \", TRUE, IF(AH106=\"\", \"\", AH106), IF(AI106=\"\", \"\", AI106), IF(AJ106=\"\", \"\", AJ106))","v":"TCAC"},null,null,null,null,null,null,null,null,null,null,null,null,null,null,{"$f":"IF($Q$16=\"Yes\", \"TCAC\",\"\")","v":"TCAC"},"TCAC"]
["Rent Cap Certification indicating that all annual rent increases on low-income units will not exceed 5% plus the percentage change in the cost of living or 10% of the lowest rental rate charged for that unit at any time during the 12 months prior to the effective date of the increase, whichever is lower (CTCAC Regulation Section 10328(a)(4). Please note this only applies to any annual rent increase after 4/3/2024",null,null,null,null,null,null,null,null,null,null,null,null,null,null,null,null,null,null,null,"TCAC",null,null,null,null,null,null,null,null,null,null,null,null,null,null,{"$f":"IF($Q$16=\"Yes\", \"TCAC\",\"\")","v":"TCAC"},"TCAC"]
["Purchase and Sale Agreement and any amendments, and any supporting or other documents to a sale or transfer of the real property (if applicable)",null,null,null,null,null,null,null,null,null,null,null,null,null,null,null,null,null,null,null,"HCD, CalHFA, TCAC",null,null,null,null,null,null,null,null,null,null,null,null,{"$f":"IF($Q$14=\"Yes\", \"HCD\",\"\")","v":"HCD"},{"$f":"IF($Q$15=\"Yes\", \"CalHFA\",\"\")","v":"CalHFA"},{"$f":"IF($Q$16=\"Yes\", \"TCAC\",\"\")","v":"TCAC"},"HCDCalHFATCAC"]
["Executed copy of the transfer document(s) the parties used to transfer the interest. Including copy of recorded Grant Deed. ***Examples include a document with the title “Transfer and Sale of Limited Partner Interest in the (name), Limited Partnership”*** ",null,null,null,null,null,null,null,null,null,null,null,null,null,null,null,null,null,null,null,"CalHFA",null,null,null,null,null,null,null,null,null,null,null,null,null,{"$f":"IF($Q$15=\"Yes\", \"CalHFA\",\"\")","v":"CalHFA"},null,"CalHFA"]
["A description of the transfer arrangement and impacts upon the property, including financial terms, sources and uses, conditions, and flow chart(s) of the existing and proposed ownership structure",null,null,null,null,null,null,null,null,null,null,null,null,null,null,null,null,null,null,null,"CalHFA",null,null,null,null,null,null,null,null,null,null,null,null,null,{"$f":"IF($Q$15=\"Yes\", \"CalHFA\",\"\")","v":"CalHFA"},null,"CalHFA"]
["Evidence that development will not be subject to any additional liens or encumbrances with the transfer without prior written approval",null,null,null,null,null,null,null,null,null,null,null,null,null,null,null,null,null,null,null,"CalHFA",null,null,null,null,null,null,null,null,null,null,null,null,null,{"$f":"IF($Q$15=\"Yes\", \"CalHFA\",\"\")","v":"CalHFA"},null,"CalHFA"]
["Statement of how much will rents increase after the proposed transfer of ownership interests occurs",null,null,null,null,null,null,null,null,null,null,null,null,null,null,null,null,null,null,null,"TCAC",null,null,null,null,null,null,null,null,null,null,null,null,null,null,{"$f":"IF($Q$16=\"Yes\", \"TCAC\",\"\")","v":"TCAC"},"TCAC"]
["Obtain written confirmation/certification that no funds from the project operating account or any of the project’s reserve account funds are being used to ‘buy out’ the limited partner interest. All reserves must remain with project",null,null,null,null,null,null,null,null,null,null,null,null,null,null,null,null,null,null,null,"CalHFA, TCAC",null,null,null,null,null,null,null,null,null,null,null,null,null,{"$f":"IF($Q$15=\"Yes\", \"CalHFA\",\"\")","v":"CalHFA"},{"$f":"IF($Q$16=\"Yes\", \"TCAC\",\"\")","v":"TCAC"},"CalHFATCAC"]
["Completed TCAC Annual Owner Certification (AOC) Form and TCAC Annual Operating Expense (AOE) reports ",null,null,null,null,null,null,null,null,null,null,null,null,null,null,null,null,null,null,null,"TCAC",null,null,null,null,null,null,null,null,null,null,null,null,null,null,{"$f":"IF($Q$16=\"Yes\", \"TCAC\",\"\")","v":"TCAC"},"TCAC"]
["Operating Reserve - Calculate and approve annual deposit",null,null,null,null,null,null,null,null,null,null,null,null,null,null,null,null,null,null,null,"HCD",null,null,null,null,null,null,null,null,null,null,null,null,{"$f":"IF($Q$14=\"Yes\", \"HCD\",\"\")","v":"HCD"},null,null,"HCD"]
["Verifications for Proposed Operating Budget (if different from most recent approved Operating Expenses) - Most recent Audited Financial Statements/Annual Report ",null,null,null,null,null,null,null,null,null,null,null,null,null,null,null,null,null,null,null,"HCD",null,null,null,null,null,null,null,null,null,null,null,null,{"$f":"IF($Q$14=\"Yes\", \"HCD\",\"\")","v":"HCD"},null,null,"HCD"]
["A Deposit Account Control Agreement for the property’s new operating account",null,null,null,null,null,null,null,null,null,null,null,null,null,null,null,null,null,null,null,"CalHFA",null,null,null,null,null,null,null,null,null,null,null,null,null,{"$f":"IF($Q$15=\"Yes\", \"CalHFA\",\"\")","v":"CalHFA"},null,"CalHFA"]
["Evidence that all tenant security deposits are under buyer’s control",null,null,null,null,null,null,null,null,null,null,null,null,null,null,null,null,null,null,null,"CalHFA",null,null,null,null,null,null,null,null,null,null,null,null,null,{"$f":"IF($Q$15=\"Yes\", \"CalHFA\",\"\")","v":"CalHFA"},null,"CalHFA"]
["Sponsor Operating Guaranty / Sponsor Operating and Control Agreement (SOCA)",null,null,null,null,null,null,null,null,null,null,null,null,null,null,null,null,null,null,null,"HCD",null,null,null,null,null,null,null,null,null,null,null,null,{"$f":"IF($Q$14=\"Yes\", \"HCD\",\"\")","v":"HCD"},null,null,"HCD"]
["Assignment and Assumption Agreements assigning Loan and/or Regulatory Agreement Documents from each Agency to the buyer",null,null,null,null,null,null,null,null,null,null,null,null,null,null,null,null,null,null,null,"HCD, CalHFA",null,null,null,null,null,null,null,null,null,null,null,null,{"$f":"IF($Q$14=\"Yes\", \"HCD\",\"\")","v":"HCD"},{"$f":"IF($Q$15=\"Yes\", \"CalHFA\",\"\")","v":"CalHFA"},null,"HCDCalHFA"]
["CTCAC Assignment and Assumption Agreement assigning Regulatory Agreement Document to the buyer",null,null,null,null,null,null,null,null,null,null,null,null,null,null,null,null,null,null,null,{"$f":"_xlfn.TEXTJOIN(\", \", TRUE, IF(AH121=\"\", \"\", AH121), IF(AI121=\"\", \"\", AI121), IF(AJ121=\"\", \"\", AJ121))","v":"TCAC"},null,null,null,null,null,null,null,null,null,null,null,null,null,null,{"$f":"IF($Q$16=\"Yes\", \"TCAC\",\"\")","v":"TCAC"},"TCAC"]
["Grants - all fully executed grant documents, exhibits and attachments.",null,null,null,null,null,null,null,null,null,null,null,null,null,null,null,null,null,null,null,{"$f":"_xlfn.TEXTJOIN(\", \", TRUE, IF(AH122=\"\", \"\", AH122), IF(AI122=\"\", \"\", AI122), IF(AJ122=\"\", \"\", AJ122))","v":"HCD"},null,null,null,null,null,null,null,null,null,null,null,null,{"$f":"IF($Q$14=\"Yes\", \"HCD\",\"\")","v":"HCD"},null,null,"HCD"]
["Bridge loans - all fully executed loan documents, exhibits, and attachments, if applicable.  If loan will be executed at permanent closing, provide draft documents",null,null,null,null,null,null,null,null,null,null,null,null,null,null,null,null,null,null,null,"HCD",null,null,null,null,null,null,null,null,null,null,null,null,"HCD",null,null,"HCD"]
["Anything required to document the project specific requirements listed in the Special Conditions tab",null,null,null,null,null,null,null,null,null,null,null,null,null,null,null,null,null,null,null,"HCD",null,null,null,null,null,null,null,null,null,null,null,null,"HCD",null,null,"HCD"]
["Evidence of post transfer hazard, liability and earthquake (if required) insurance. Submit certificate with the liability endorsement",null,null,null,null,null,null,null,null,null,null,null,null,null,null,null,null,null,null,null,"HCD, CalHFA",null,null,null,null,null,null,null,null,null,null,null,null,"HCD",{"$f":"IF($Q$15=\"Yes\", \"CalHFA\",\"\")","v":"CalHFA"},null,"HCDCalHFA"]
["Management Agent Change Form ",null,null,null,null,null,null,null,null,null,null,null,null,null,null,null,null,null,null,null,"HCD",null,null,null,null,null,null,null,null,null,null,null,null,"HCD",null,null,"HCD"]
["New Management Agreement Checklist",null,null,null,null,null,null,null,null,null,null,null,null,null,null,null,null,null,null,null,"HCD",null,null,null,null,null,null,null,null,null,null,null,null,"HCD",null,null,"HCD"]
["Management Plan Checklist",null,null,null,null,null,null,null,null,null,null,null,null,null,null,null,null,null,null,null,"HCD",null,null,null,null,null,null,null,null,null,null,null,null,"HCD",null,null,"HCD"]
["New Management Plan and Exhibits",null,null,null,null,null,null,null,null,null,null,null,null,null,null,null,null,null,null,null,"HCD",null,null,null,null,null,null,null,null,null,null,null,null,"HCD",null,null,"HCD"]
["Marketing Plan and Tenant Selection Plan",null,null,null,null,null,null,null,null,null,null,null,null,null,null,null,null,null,null,null,"HCD",null,null,null,null,null,null,null,null,null,null,null,null,"HCD",null,null,"HCD"]
["Appeal and grievance procedure",null,null,null,null,null,null,null,null,null,null,null,null,null,null,null,null,null,null,null,"HCD",null,null,null,null,null,null,null,null,null,null,null,null,"HCD",null,null,"HCD"]
["Rental Agreement, exhibits, HCD Lease Addendum",null,null,null,null,null,null,null,null,null,null,null,null,null,null,null,null,null,null,null,"HCD",null,null,null,null,null,null,null,null,null,null,null,null,"HCD",null,null,"HCD"]
["Lease agreements for child care and other spaces used for supportive services, if applicable",null,null,null,null,null,null,null,null,null,null,null,null,null,null,null,null,null,null,null,"HCD",null,null,null,null,null,null,null,null,null,null,null,null,"HCD",null,null,"HCD"]
["Supportive Services Plan",null,null,null,null,null,null,null,null,null,null,null,null,null,null,null,null,null,null,null,"HCD",null,null,null,null,null,null,null,null,null,null,null,null,"HCD",null,null,"HCD"]
["Resolution of non-compliance issues(s)  (e.g., back interest due; occupancy, rent deficiencies; past due reports for all projects associated with Sponsor or Borrower, etc.)",null,null,null,null,null,null,null,null,null,null,null,null,null,null,null,null,null,null,null,"HCD",null,null,null,null,null,null,null,null,null,null,null,null,"HCD",null,null,"HCD"]
["Buyer's and Seller's Settlement Statements",null,null,null,null,null,null,null,null,null,null,null,null,null,null,null,null,null,null,null,"HCD",null,null,null,null,null,null,null,null,null,null,null,null,"HCD",null,null,"HCD"]
["Proforma Title Insurance Policy",null,null,null,null,null,null,null,null,null,null,null,null,null,null,null,null,null,null,null,"HCD",null,null,null,null,null,null,null,null,null,null,null,null,"HCD",null,null,"HCD"]
["Escrow Instructions Acknowledgement and Receipt executed",null,null,null,null,null,null,null,null,null,null,null,null,null,null,null,null,null,null,null,"HCD",null,null,null,null,null,null,null,null,null,null,null,null,"HCD",null,null,"HCD"]
["Anything required to satisfy Special Escrow Closing Conditions",null,null,null,null,null,null,null,null,null,null,null,null,null,null,null,null,null,null,null,"HCD",null,null,null,null,null,null,null,null,null,null,null,null,"HCD",null,null,"HCD"]
["Resolution of non-compliance issues(s)  (e.g., back interest due; occupancy, rent deficiencies; past due reports for all projects associated with Sponsor or Borrower, etc.)",null,null,null,null,null,null,null,null,null,null,null,null,null,null,null,null,null,null,null,{"$f":"_xlfn.TEXTJOIN(\", \", TRUE, IF(AH140=\"\", \"\", AH140), IF(AI140=\"\", \"\", AI140), IF(AJ140=\"\", \"\", AJ140))","v":"HCD"},null,null,null,null,null,null,null,null,null,null,null,null,"HCD",null,null,"HCD"]
["Executed Property Management Agreement\n",null,null,null,null,null,null,null,null,null,null,null,null,null,null,null,null,null,null,null,{"$f":"_xlfn.TEXTJOIN(\", \", TRUE, IF(AH141=\"\", \"\", AH141), IF(AI141=\"\", \"\", AI141), IF(AJ141=\"\", \"\", AJ141))","v":"HCD, CalHFA, TCAC"},null,null,null,null,null,null,null,null,null,null,null,null,{"$f":"IF($Q$14=\"Yes\", \"HCD\",\"\")","v":"HCD"},{"$f":"IF($Q$15=\"Yes\", \"CalHFA\",\"\")","v":"CalHFA"},{"$f":"IF($Q$16=\"Yes\", \"TCAC\",\"\")","v":"TCAC"},{"$f":"CONCATENATE(AH141,AI141,AJ141)","v":"HCDCalHFATCAC"}]
["TCAC Project Status Report (PSR)",null,null,null,null,null,null,null,null,null,null,null,null,null,null,null,null,null,null,null,"TCAC",null,null,null,null,null,null,null,null,null,null,null,null,null,null,{"$f":"IF($Q$16=\"Yes\", \"TCAC\",\"\")","v":"TCAC"},"TCAC"]
["An attorney opinion letter",null,null,null,null,null,null,null,null,null,null,null,null,null,null,null,null,null,null,null,"CalHFA",null,null,null,null,null,null,null,null,null,null,null,null,null,{"$f":"IF($Q$15=\"Yes\", \"CalHFA\",\"\")","v":"CalHFA"},null,"CalHFA"]
["A current W-9",null,null,null,null,null,null,null,null,null,null,null,null,null,null,null,null,null,null,null,"CalHFA",null,null,null,null,null,null,null,null,null,null,null,null,null,{"$f":"IF($Q$15=\"Yes\", \"CalHFA\",\"\")","v":"CalHFA"},null,"CalHFA"]
["Notice of Exercise of Option (if applicable)",null,null,null,null,null,null,null,null,null,null,null,null,null,null,null,null,null,null,null,"HCD",null,null,null,null,null,null,null,null,null,null,null,null,{"$f":"IF($Q$14=\"Yes\", \"HCD\",\"\")","v":"HCD"},null,null,"HCD"]
["2530 Clearance, if applicable (only needed when there is HUD involvement)",null,null,null,null,null,null,null,null,null,null,null,null,null,null,null,null,null,null,null,"CalHFA",null,null,null,null,null,null,null,null,null,null,null,null,null,{"$f":"IF($Q$15=\"Yes\", \"CalHFA\",\"\")","v":"CalHFA"},null,"CalHFA"]
["Assignment of the HAP agreement, if applicable",null,null,null,null,null,null,null,null,null,null,null,null,null,null,null,null,null,null,null,"CalHFA",null,null,null,null,null,null,null,null,null,null,null,null,null,{"$f":"IF($Q$15=\"Yes\", \"CalHFA\",\"\")","v":"CalHFA"},null,"CalHFA"]
["Recorded or unrecorded Commercial Lease(s) plus contact info for all parties to all commercial leases including laundry leases, solar equipment, cell tower leases, etc., if applicable. NOTE: Master Lease must include all commercial square footage identified in the application",null,null,null,null,null,null,null,null,null,null,null,null,null,null,null,null,null,null,null,"HCD",null,null,null,null,null,null,null,null,null,null,null,null,{"$f":"IF($Q$14=\"Yes\", \"HCD\",\"\")","v":"HCD"},null,null,"HCD"]
["All Joint Use, Reciprocal, and Maintenance Agreements",null,null,null,null,null,null,null,null,null,null,null,null,null,null,null,null,null,null,null,"HCD",null,null,null,null,null,null,null,null,null,null,null,null,"HCD",null,null,"HCD"]
["Letter of Intent from Equity Investor",null,null,null,null,null,null,null,null,null,null,null,null,null,null,null,null,null,null,null,"HCD",null,null,null,null,null,null,null,null,null,null,null,null,"HCD",null,null,{"$f":"CONCATENATE(AH150,AI150,AJ150)","v":"HCD"}]
["New Construction Loan (Provide information regarding whether construction funding only or loan will convert to permanent senior loan). Senior Permanent Lender Loan / Bond Financing Term Sheet and all draft documents. Executed documents, exhibits, and attachments due prior to closing. Final documents, exhibits and attachments due prior to closing (if applicable)",null,null,null,null,null,null,null,null,null,null,null,null,null,null,null,null,null,null,null,"HCD",null,null,null,null,null,null,null,null,null,null,null,null,"HCD",null,null,"HCD"]
["New Permanent loan that will be on title at the time of loan recordation - Senior Permanent Lender Loan / Bond Financing Term Sheet (if applicable) ",null,null,null,null,null,null,null,null,null,null,null,null,null,null,null,null,null,null,null,"HCD",null,null,null,null,null,null,null,null,null,null,null,null,"HCD",null,null,"HCD"]
["Permanent Junior lender(s) (provide information regarding whether it is a construction funding only or if loan will convert to permanent senior loan). Senior Permanent Lender Loan / Bond Financing Term Sheet and all draft documents. Executed documents, exhibits, and attachments due prior to closing. Final documents, exhibits and attachments due prior to closing (if applicable)",null,null,null,null,null,null,null,null,null,null,null,null,null,null,null,null,null,null,null,"HCD",null,null,null,null,null,null,null,null,null,null,null,null,"HCD",null,null,"HCD"]
["Permanent Non-Public Junior lender(s) (provide information regarding whether  construction funding only or if loan will convert to senior loan) Senior Lender Loan / Bond Financing Term Sheet and all draft documents. Executed documents, exhibits, and attachments due prior to closing. Final documents, exhibits and attachments due prior to closing (if applicable)",null,null,null,null,null,null,null,null,null,null,null,null,null,null,null,null,null,null,null,"HCD",null,null,null,null,null,null,null,null,null,null,null,null,"HCD",null,null,"HCD"]
[null,null,null,null,null,null,null,null,null,null,null,null,null,null,null,null,null,null,null,null,null,null,null,null,null,null,null,null,null,null,null,null,null,null,null,null,"X"]
["GP Change",null,null,null,null,null,null,null,null,null,null,null,null,null,null,null,null,null,null,null,null,null,null,null,null,null,null,null,null,null,null,null,null,null,null,null,"X"]
["Documents:",null,null,null,null,null,null,null,null,null,null,null,null,null,null,null,null,null,null,null,"Required By:",null,null,null,null,null,null,null,"Attached?",null,null,null,null,"HCD","CALHFA","TCAC","X"]
["Ownership Change Form indicating the proposed ownership change",null,null,null,null,null,null,null,null,null,null,null,null,null,null,null,null,null,null,null,{"$f":"_xlfn.TEXTJOIN(\", \", TRUE, IF(AH158=\"\", \"\", AH158), IF(AI158=\"\", \"\", AI158), IF(AJ158=\"\", \"\", AJ158))","v":"HCD, CalHFA, TCAC"},null,null,null,null,null,null,null,null,null,null,null,null,{"$f":"IF($Q$14=\"Yes\", \"HCD\",\"\")","v":"HCD"},{"$f":"IF($Q$15=\"Yes\", \"CalHFA\",\"\")","v":"CalHFA"},{"$f":"IF($Q$16=\"Yes\", \"TCAC\",\"\")","v":"TCAC"},{"$f":"CONCATENATE(AH158,AI158,AJ158)","v":"HCDCalHFATCAC"}]
["Completed application, with required attachments - send email to HCDTransactionUnit@hcd.ca.gov",null,null,null,null,null,null,null,null,null,null,null,null,null,null,null,null,null,null,null,{"$f":"_xlfn.TEXTJOIN(\", \", TRUE, IF(AH159=\"\", \"\", AH159), IF(AI159=\"\", \"\", AI159), IF(AJ159=\"\", \"\", AJ159))","v":"HCD"},null,null,null,null,null,null,null,null,null,null,null,null,{"$f":"IF($Q$14=\"Yes\", \"HCD\",\"\")","v":"HCD"},null,null,"HCD"]
["Diagram of existing Borrower organizational structure ",null,null,null,null,null,null,null,null,null,null,null,null,null,null,null,null,null,null,null,"HCD, CalHFA",null,null,null,null,null,null,null,null,null,null,null,null,{"$f":"IF($Q$14=\"Yes\", \"HCD\",\"\")","v":"HCD"},{"$f":"IF($Q$15=\"Yes\", \"CalHFA\",\"\")","v":"CalHFA"},null,"HCDCalHFA"]
["Diagram of proposed Borrower organizational structure",null,null,null,null,null,null,null,null,null,null,null,null,null,null,null,null,null,null,null,"HCD, CalHFA",null,null,null,null,null,null,null,null,null,null,null,null,"HCD","CalHFA",null,{"$f":"CONCATENATE(AH161,AI161,AJ161)","v":"HCDCalHFA"}]
["Sponsor/Owner/Borrower signature block for the existing Borrower (MS Word format) ",null,null,null,null,null,null,null,null,null,null,null,null,null,null,null,null,null,null,null,"HCD, CalHFA",null,null,null,null,null,null,null,null,null,null,null,null,"HCD","CalHFA",null,"HCDCalHFA"]
["Sponsor/Owner/Borrower signature blocks for proposed Borrower (in MS Word format) ",null,null,null,null,null,null,null,null,null,null,null,null,null,null,null,null,null,null,null,"HCD, CalHFA",null,null,null,null,null,null,null,null,null,null,null,null,"HCD","CalHFA",null,"HCDCalHFA"]
["All existing Borrower organizational documents including amendments for every level of the Borrower entity, Secretary of State filings (for example for a limited partnership - an LP1 and all LP2s)",null,null,null,null,null,null,null,null,null,null,null,null,null,null,null,null,null,null,null,"HCD, CalHFA",null,null,null,null,null,null,null,null,null,null,null,null,"HCD","CalHFA",null,"HCDCalHFA"]
["All proposed Borrower organizational documents including amendments for every level of the Borrower entity, Secretary of State filings (for example for a limited partnership - an LP1 and all LP2s). Also provide proposed to be executed organizational documents in draft as applicable",null,null,null,null,null,null,null,null,null,null,null,null,null,null,null,null,null,null,null,"HCD, CalHFA",null,null,null,null,null,null,null,null,null,null,null,null,"HCD","CalHFA",null,"HCDCalHFA"]
["Updated CTCAC Project Ownership Profile Form ",null,null,null,null,null,null,null,null,null,null,null,null,null,null,null,null,null,null,null,"TCAC",null,null,null,null,null,null,null,null,null,null,null,null,null,null,{"$f":"IF($Q$16=\"Yes\", \"TCAC\",\"\")","v":"TCAC"},"TCAC"]
["For each level of the existing Borrower entity - Certificate of Status from Secretary of State",null,null,null,null,null,null,null,null,null,null,null,null,null,null,null,null,null,null,null,"HCD, CalHFA",null,null,null,null,null,null,null,null,null,null,null,null,"HCD",{"$f":"IF($Q$15=\"Yes\", \"CalHFA\",\"\")","v":"CalHFA"},null,"HCDCalHFA"]
["For each level of the proposed Borrower entity - Certificate of Status from Secretary of State",null,null,null,null,null,null,null,null,null,null,null,null,null,null,null,null,null,null,null,"HCD, CalHFA",null,null,null,null,null,null,null,null,null,null,null,null,"HCD","CalHFA",null,"HCDCalHFA"]
["Resolutions/Authorizations from every level of the existing Borrower organizational structure authorizing the transaction",null,null,null,null,null,null,null,null,null,null,null,null,null,null,null,null,null,null,null,"HCD, CalHFA",null,null,null,null,null,null,null,null,null,null,null,null,"HCD","CalHFA",null,"HCDCalHFA"]
["Resolutions/Authorizations from every level of the proposed Borrower organizational structure authorizing the transaction",null,null,null,null,null,null,null,null,null,null,null,null,null,null,null,null,null,null,null,"HCD, CalHFA",null,null,null,null,null,null,null,null,null,null,null,null,"HCD","CalHFA",null,"HCDCalHFA"]
["For proposed Borrower, evidence of BOE Welfare Property Tax Exemption (Non-Profit status of managing general partner or sole general partner)",null,null,null,null,null,null,null,null,null,null,null,null,null,null,null,null,null,null,null,"CalHFA",null,null,null,null,null,null,null,null,null,null,null,null,null,"CalHFA",null,{"$f":"CONCATENATE(AH171,AI171,AJ171)","v":"CalHFA"}]
["Evidence of Welfare Property Tax Exemption",null,null,null,null,null,null,null,null,null,null,null,null,null,null,null,null,null,null,null,{"$f":"_xlfn.TEXTJOIN(\", \", TRUE, IF(AH172=\"\", \"\", AH172), IF(AI172=\"\", \"\", AI172), IF(AJ172=\"\", \"\", AJ172))","v":"HCD"},null,null,null,null,null,null,null,null,null,null,null,null,{"$f":"IF($Q$14=\"Yes\", \"HCD\",\"\")","v":"HCD"},null,null,{"$f":"CONCATENATE(AH172,AI172,AJ172)","v":"HCD"}]
["Proof of 501(c)(3) eligible status and IRS letter (of applicable entities)",null,null,null,null,null,null,null,null,null,null,null,null,null,null,null,null,null,null,null,"HCD, CalHFA",null,null,null,null,null,null,null,null,null,null,null,null,"HCD","CalHFA",null,"HCDCalHFA"]
["Verifications for Proposed Operating Budget (if different from most recent approved Operating Expenses) - Most recent Audited Financial Statements/Annual Report",null,null,null,null,null,null,null,null,null,null,null,null,null,null,null,null,null,null,null,"HCD",null,null,null,null,null,null,null,null,null,null,null,null,"HCD",null,null,"HCD"]
["Fully executed ground Lease and all Amendments for leasehold security projects",null,null,null,null,null,null,null,null,null,null,null,null,null,null,null,null,null,null,null,"HCD",null,null,null,null,null,null,null,null,null,null,null,null,"HCD",null,null,"HCD"]
["Anything required to document the project specific requirements listed in the Special Conditions tab of the TU Application. ",null,null,null,null,null,null,null,null,null,null,null,null,null,null,null,null,null,null,null,{"$f":"_xlfn.TEXTJOIN(\", \", TRUE, IF(AH176=\"\", \"\", AH176), IF(AI176=\"\", \"\", AI176), IF(AJ176=\"\", \"\", AJ176))","v":"HCD"},null,null,null,null,null,null,null,null,null,null,null,null,{"$f":"IF($Q$14=\"Yes\", \"HCD\",\"\")","v":"HCD"},null,null,"HCD"]
["Evidence of post transfer hazard, liability and earthquake (if required) insurance. Submit certificate with the liability endorsement",null,null,null,null,null,null,null,null,null,null,null,null,null,null,null,null,null,null,null,"HCD, CalHFA",null,null,null,null,null,null,null,null,null,null,null,null,"HCD",{"$f":"IF($Q$15=\"Yes\", \"CalHFA\",\"\")","v":"CalHFA"},null,"HCDCalHFA"]
["Management Change Form",null,null,null,null,null,null,null,null,null,null,null,null,null,null,null,null,null,null,null,"HCD, CalHFA",null,null,null,null,null,null,null,null,null,null,null,null,"HCD","CalHFA",null,"HCDCalHFA"]
["New Management Agreement Checklist ",null,null,null,null,null,null,null,null,null,null,null,null,null,null,null,null,null,null,null,"HCD",null,null,null,null,null,null,null,null,null,null,null,null,"HCD",null,null,"HCD"]
["Management Plan Checklist",null,null,null,null,null,null,null,null,null,null,null,null,null,null,null,null,null,null,null,"HCD",null,null,null,null,null,null,null,null,null,null,null,null,"HCD",null,null,"HCD"]
["New Management Plan and Exhibits",null,null,null,null,null,null,null,null,null,null,null,null,null,null,null,null,null,null,null,"HCD",null,null,null,null,null,null,null,null,null,null,null,null,"HCD",null,null,"HCD"]
["Marketing Plan and Tenant Selection Plan",null,null,null,null,null,null,null,null,null,null,null,null,null,null,null,null,null,null,null,"HCD",null,null,null,null,null,null,null,null,null,null,null,null,"HCD",null,null,"HCD"]
["Appeal and grievance procedure",null,null,null,null,null,null,null,null,null,null,null,null,null,null,null,null,null,null,null,"HCD",null,null,null,null,null,null,null,null,null,null,null,null,"HCD",null,null,"HCD"]
["Rental Agreement, exhibits, HCD Lease Addendum ",null,null,null,null,null,null,null,null,null,null,null,null,null,null,null,null,null,null,null,"HCD",null,null,null,null,null,null,null,null,null,null,null,null,"HCD",null,null,"HCD"]
["Lease agreements for child care and other spaces used for supportive services, if applicable.",null,null,null,null,null,null,null,null,null,null,null,null,null,null,null,null,null,null,null,"HCD",null,null,null,null,null,null,null,null,null,null,null,null,"HCD",null,null,"HCD"]
["Supportive Services Plan",null,null,null,null,null,null,null,null,null,null,null,null,null,null,null,null,null,null,null,"HCD",null,null,null,null,null,null,null,null,null,null,null,null,"HCD",null,null,"HCD"]
["Resolution of non-compliance issues(s) - INITIAL CHECK (e.g., back interest due; occupancy, rent deficiencies; past due reports for all projects associated with Sponsor or Borrower, etc.) - ",null,null,null,null,null,null,null,null,null,null,null,null,null,null,null,null,null,null,null,"HCD, CalHFA",null,null,null,null,null,null,null,null,null,null,null,null,"HCD","CalHFA",null,"HCDCalHFA"]
["Sponsor Operating Guaranty or Sponsor Operating and Control Agreement (if applicable)",null,null,null,null,null,null,null,null,null,null,null,null,null,null,null,null,null,null,null,"HCD",null,null,null,null,null,null,null,null,null,null,null,null,"HCD",null,null,"HCD"]
["A copy of the executed/proposed transfer/purchase agreement for sale of property",null,null,null,null,null,null,null,null,null,null,null,null,null,null,null,null,null,null,null,"CalHFA",null,null,null,null,null,null,null,null,null,null,null,null,null,{"$f":"IF($Q$15=\"Yes\", \"CalHFA\",\"\")","v":"CalHFA"},null,"CalHFA"]
["A narrative description of the transfer arrangement and impacts upon the property, including financial terms, sources and uses, conditions",null,null,null,null,null,null,null,null,null,null,null,null,null,null,null,null,null,null,null,"CalHFA",null,null,null,null,null,null,null,null,null,null,null,null,null,"CalHFA",null,"CalHFA"]
["2530 Clearance (for all HUD funded or insured loan projects)",null,null,null,null,null,null,null,null,null,null,null,null,null,null,null,null,null,null,null,"CalHFA",null,null,null,null,null,null,null,null,null,null,null,null,null,"CalHFA",null,"CalHFA"]
["An attorney opinion letter",null,null,null,null,null,null,null,null,null,null,null,null,null,null,null,null,null,null,null,"CalHFA",null,null,null,null,null,null,null,null,null,null,null,null,null,"CalHFA",null,"CalHFA"]
["A copy of Current W-9",null,null,null,null,null,null,null,null,null,null,null,null,null,null,null,null,null,null,null,"CalHFA",null,null,null,null,null,null,null,null,null,null,null,null,null,"CalHFA",null,"CalHFA"]
["A copy of an executed management contract with the incoming General Partner",null,null,null,null,null,null,null,null,null,null,null,null,null,null,null,null,null,null,null,"CalHFA",null,null,null,null,null,null,null,null,null,null,null,null,null,"CalHFA",null,"CalHFA"]
["Proposed transfer to new outside entity - Complete CTCAC Attachment 21 - General Partner Experience for the incoming entity, link to form",null,null,null,null,null,null,null,null,null,null,null,null,null,null,null,null,null,null,null,"TCAC",null,null,null,null,null,null,null,null,null,null,null,null,null,null,{"$f":"IF($Q$16=\"Yes\", \"TCAC\",\"\")","v":"TCAC"},"TCAC"]
["Current/Updated Preliminary Report (PR) with hyperlinks. If there is a ground lease, two hyperlinked PRs are required (one for fee and one for lease holder estate). NOTE: Less than 30 days old. An updated PR (or proforma) will be required prior to closing the transaction",null,null,null,null,null,null,null,null,null,null,null,null,null,null,null,null,null,null,null,{"$f":"_xlfn.TEXTJOIN(\", \", TRUE, IF(AH196=\"\", \"\", AH196), IF(AI196=\"\", \"\", AI196), IF(AJ196=\"\", \"\", AJ196))","v":"CalHFA"},null,null,null,null,null,null,null,null,null,null,null,null,null,{"$f":"IF($Q$15=\"Yes\", \"CalHFA\",\"\")","v":"CalHFA"},null,{"$f":"CONCATENATE(AH196,AI196,AJ196)","v":"CalHFA"}]
["Resolution of non-compliance issues(s) - FINAL CHECK (e.g., back interest due; occupancy, rent deficiencies; past due reports for all projects associated with Sponsor or Borrower, etc.)",null,null,null,null,null,null,null,null,null,null,null,null,null,null,null,null,null,null,null,{"$f":"_xlfn.TEXTJOIN(\", \", TRUE, IF(AH197=\"\", \"\", AH197), IF(AI197=\"\", \"\", AI197), IF(AJ197=\"\", \"\", AJ197))","v":"HCD, TCAC"},null,null,null,null,null,null,null,null,null,null,null,null,{"$f":"IF($Q$14=\"Yes\", \"HCD\",\"\")","v":"HCD"},null,{"$f":"IF($Q$16=\"Yes\", \"TCAC\",\"\")","v":"TCAC"}]
[null,null,null,null,null,null,null,null,null,null,null,null,null,null,null,null,null,null,null,null,null,null,null,null,null,null,null,null,null,null,null,null,null,null,null,null,"X"]
["LP Change",null,null,null,null,null,null,null,null,null,null,null,null,null,null,null,null,null,null,null,null,null,null,null,null,null,null,null,null,null,null,null,null,null,null,null,"X"]
["Documents: ",null,null,null,null,null,null,null,null,null,null,null,null,null,null,null,null,null,null,null,"Required By:",null,null,null,null,null,null,null,"Attached?",null,null,null,null,"HCD","CALHFA","TCAC","X"]
["Ownership Change Form indicating the proposed transfer of limited partner interests ",null,null,null,null,null,null,null,null,null,null,null,null,null,null,null,null,null,null,null,"HCD, CalHFA, TCAC",null,null,null,null,null,null,null,null,null,null,null,null,{"$f":"IF($Q$14=\"Yes\", \"HCD\",\"\")","v":"HCD"},{"$f":"IF($Q$15=\"Yes\", \"CalHFA\",\"\")","v":"CalHFA"},{"$f":"IF($Q$16=\"Yes\", \"TCAC\",\"\")","v":"TCAC"},"HCDCalHFATCAC"]
["Organizational documents of the incoming Limited Partner",null,null,null,null,null,null,null,null,null,null,null,null,null,null,null,null,null,null,null,"CalHFA",null,null,null,null,null,null,null,null,null,null,null,null,null,{"$f":"IF($Q$15=\"Yes\", \"CalHFA\",\"\")","v":"CalHFA"},null,"CalHFA"]
["Confirmation that no funds from the project operating account or any of the project’s reserve account funds are being used to ‘buy out’ the limited partner interest",null,null,null,null,null,null,null,null,null,null,null,null,null,null,null,null,null,null,null,"HCD",null,null,null,null,null,null,null,null,null,null,null,null,{"$f":"IF($Q$14=\"Yes\", \"HCD\",\"\")","v":"HCD"},null,null,"HCD"]
["A copy of the executed/proposed transfer/purchase agreement, if applicable. Any and all amendments to the limited partnership agreement, identifying change(s) (if applicable) - signed by all parties ***Examples include a document with the title “Transfer and Sale of Limited Partner Interest in the (name), Limited Partnership”*** ",null,null,null,null,null,null,null,null,null,null,null,null,null,null,null,null,null,null,null,"HCD, CalHFA",null,null,null,null,null,null,null,null,null,null,null,null,{"$f":"IF($Q$14=\"Yes\", \"HCD\",\"\")","v":"HCD"},{"$f":"IF($Q$15=\"Yes\", \"CalHFA\",\"\")","v":"CalHFA"},null,"HCDCalHFA"]
["An executed copy of the Amended Limited Partnership Agreement (LPA).  ***The LPA must be signed by the General Partner and the new incoming Limited Partner(s)*** and provide a copy of the Certificate of Limited Partnership (LP-1)",null,null,null,null,null,null,null,null,null,null,null,null,null,null,null,null,null,null,null,"HCD, CalHFA",null,null,null,null,null,null,null,null,null,null,null,null,{"$f":"IF($Q$14=\"Yes\", \"HCD\",\"\")","v":"HCD"},{"$f":"IF($Q$15=\"Yes\", \"CalHFA\",\"\")","v":"CalHFA"},null,"HCDCalHFA"]
["Complete new HCD POP form and other documentation as necessary to obtain the new Limited Partner contact information (name of entity, CEO/Pres/Exec Director’s name, main point of contact within that organization – could be an affiliate of the sponsor – etc.)",null,null,null,null,null,null,null,null,null,null,null,null,null,null,null,null,null,null,null,"HCD",null,null,null,null,null,null,null,null,null,null,null,null,{"$f":"IF($Q$14=\"Yes\", \"HCD\",\"\")","v":"HCD"},null,null,"HCD"]
["Operating Agreement and Articles of Organization (LLC-1) for an LLC ",null,null,null,null,null,null,null,null,null,null,null,null,null,null,null,null,null,null,null,"CalHFA",null,null,null,null,null,null,null,null,null,null,null,null,null,{"$f":"IF($Q$15=\"Yes\", \"CalHFA\",\"\")","v":"CalHFA"},null,"CalHFA"]
["Bylaws and Articles of Incorporation (ARTS-GS) for a corporation ",null,null,null,null,null,null,null,null,null,null,null,null,null,null,null,null,null,null,null,"CalHFA",null,null,null,null,null,null,null,null,null,null,null,null,null,"CalHFA",null,"CalHFA"]
["A description of the transfer arrangement and impacts upon the property, including financial terms, sources and uses, conditions, and flow chart(s) of the existing and proposed ownership structure ",null,null,null,null,null,null,null,null,null,null,null,null,null,null,null,null,null,null,null,"CalHFA",null,null,null,null,null,null,null,null,null,null,null,null,null,"CalHFA",null,"CalHFA"]
["Current/Updated Preliminary Report (PR) with hyperlinks. If there is a ground lease, two hyperlinked PRs are required (one for fee and one for lease holder estate). NOTE: Less than 30 days old. An updated PR (or proforma) will be required prior to closing the transaction",null,null,null,null,null,null,null,null,null,null,null,null,null,null,null,null,null,null,null,"CalHFA",null,null,null,null,null,null,null,null,null,null,null,null,null,"CalHFA",null,"CalHFA"]
["2530 Clearance, if applicable (only needed when there is HUD involvement, and the incoming entity exercises some day-to-day control of the Borrower) ",null,null,null,null,null,null,null,null,null,null,null,null,null,null,null,null,null,null,null,"CalHFA",null,null,null,null,null,null,null,null,null,null,null,null,null,"CalHFA",null,"CalHFA"]
["Corporate Resolution of withdrawing and incoming General Partners",null,null,null,null,null,null,null,null,null,null,null,null,null,null,null,null,null,null,null,"CalHFA",null,null,null,null,null,null,null,null,null,null,null,null,null,"CalHFA",null,"CalHFA"]
["Certificates of Good Standing for withdrawing and incoming General Partners",null,null,null,null,null,null,null,null,null,null,null,null,null,null,null,null,null,null,null,"CalHFA",null,null,null,null,null,null,null,null,null,null,null,null,null,"CalHFA",null,"CalHFA"]
[null,null,null,null,null,null,null,null,null,null,null,null,null,null,null,null,null,null,null,null,null,null,null,null,null,null,null,null,null,null,null,null,null,null,null,null,"X"]
["CERTIFICATION",null,null,null,null,null,null,null,null,null,null,null,null,null,null,null,null,null,null,null,null,null,null,null,null,null,null,null,null,null,null,null,null,null,null,null,"X"]
[null,null,null,null,null,null,null,null,null,null,null,null,null,null,null,null,null,null,null,null,null,null,null,null,null,null,null,null,null,null,null,null,null,null,null,null,"X"]
["On behalf of the entity identified in the signature block below, I certify that:",null,null,null,null,null,null,null,null,null,null,null,null,null,null,null,null,null,null,null,null,null,null,null,null,null,null,null,null,null,null,null,null,null,null,null,"X"]
["1. The information, statements and attachments included in this application are, to the best of my knowledge and belief, true and correct."]
["2. I possess the legal authority to submit this application on behalf of the entity identified in the signature block."]
["3. TCAC Regulation Section 10320(b)(2) requires that all transfer events, as defined in TCAC Regulation Section 10302(qq), shall obtain the prior written approval of the Executive Director."]
[]
["4. As of the date of application, the Project, or the real property on which the Project is proposed (Property) is not part to or the subject of any claim or action at the State or Federal appellate level."]
["5. I have disclosed any claim or action undertaken which affects or potentially affects the feasibility of the Project."]
["In addition, I acknowledge that all information in this application and attachments is public, and may be disclosed by the State."]
[]
["    "]
["Printed Name",null,null,null,null,null,null,null,null,null,"Title of Signatory",null,null,null,null,null,null,null,null,null,"Signature (wet signature is required)",null,null,null,null,null,null,null,null,null,"Date"]